[Event "Titled Tuesday Blitz October 31 Early 2023"]
[White "Skiadopoulos, Nikolaos"]
[Black "Thomas, Anysia"]
[WhiteFideId "4200772"]
[BlackFideId "670472"]
[WhiteElo "1792"]
[BlackElo "2234"]
[Result "0-1"]
[Round "8"]
[TimeControl "180+1"]
[Date "2023.10.31"]
[WhiteClock "0:00:00"]
[BlackClock "0:01:09"]
[Board "150"]

1. b4 {[%clk 0:03:00]}  d5 {[%clk 0:02:54]} 2. Bb2 {[%clk 0:02:53]}  Nd7 {[%clk 0:02:54]} 3. f4 {[%clk 0:02:51]}  Ngf6 {[%clk 0:02:54]} 4. Nf3 {[%clk 0:02:50]}  g6 {[%clk 0:02:53]} 5. e3 {[%clk 0:02:48]}  Bg7 {[%clk 0:02:53]} 6. Be2 {[%clk 0:02:46]}  O-O {[%clk 0:02:53]} 7. O-O {[%clk 0:02:45]}  c5 {[%clk 0:02:54]} 8. bxc5 {[%clk 0:02:44]}  Nxc5 {[%clk 0:02:54]} 9. Ne5 {[%clk 0:02:28]}  Nfe4 {[%clk 0:02:49]} 10. d3 {[%clk 0:02:24]}  Nd6 {[%clk 0:02:48]} 11. Bd4 {[%clk 0:02:15]}  b6 {[%clk 0:02:43]} 12. Nd2 {[%clk 0:02:10]}  Nf5 {[%clk 0:02:41]} 13. c3 {[%clk 0:01:57]}  Ne6 {[%clk 0:02:33]} 14. g4 {[%clk 0:01:53]}  Nexd4 {[%clk 0:02:26]} 15. cxd4 {[%clk 0:01:51]}  Nxe3 {[%clk 0:02:26]} 16. Qb3 {[%clk 0:01:23]}  Nxf1 {[%clk 0:02:24]} 17. Rxf1 {[%clk 0:01:22]}  Qd6 {[%clk 0:02:22]} 18. Ndf3 {[%clk 0:01:16]}  Be6 {[%clk 0:02:16]} 19. Ng5 {[%clk 0:01:06]}  Rac8 {[%clk 0:02:14]} 20. f5 {[%clk 0:00:56]}  Bxe5 {[%clk 0:01:59]} 21. dxe5 {[%clk 0:00:38]}  Qxe5 {[%clk 0:01:59]} 22. fxe6 {[%clk 0:00:24]}  Qe3+ {[%clk 0:01:58]} 23. Rf2 {[%clk 0:00:18]}  fxe6 {[%clk 0:01:57]} 24. Nf3 {[%clk 0:00:15]}  Rf4 {[%clk 0:01:28]} 25. h3 {[%clk 0:00:14]}  Rcf8 {[%clk 0:01:27]} 26. Kg2 {[%clk 0:00:13]}  h5 {[%clk 0:01:21]} 27. gxh5 {[%clk 0:00:05]}  gxh5 {[%clk 0:01:20]} 28. d4 {[%clk 0:00:00]}  Qe4 {[%clk 0:01:09]} 0-1


[Site "https://www.chess.com"]

[Event "Titled Tuesday Blitz October 31 Early 2023"]
[White "Bongo Akanga Ndjila, Barthelemy"]
[Black "campochess"]
[WhiteFideId "10609431"]
[WhiteElo "2030"]
[BlackElo "2178"]
[Result "0-1"]
[Round "8"]
[TimeControl "180+1"]
[Date "2023.10.31"]
[WhiteClock "0:00:00"]
[BlackClock "0:00:29"]
[Board "156"]

1. d4 {[%clk 0:02:56]}  Nf6 {[%clk 0:02:58]} 2. c4 {[%clk 0:02:55]}  g6 {[%clk 0:02:58]} 3. Nc3 {[%clk 0:02:54]}  d5 {[%clk 0:02:58]} 4. Nf3 {[%clk 0:02:54]}  Bg7 {[%clk 0:02:57]} 5. e3 {[%clk 0:02:54]}  O-O {[%clk 0:02:56]} 6. Be2 {[%clk 0:02:52]}  dxc4 {[%clk 0:02:55]} 7. Bxc4 {[%clk 0:02:51]}  b6 {[%clk 0:02:55]} 8. O-O {[%clk 0:02:49]}  Bb7 {[%clk 0:02:55]} 9. e4 {[%clk 0:02:46]}  Nfd7 {[%clk 0:02:54]} 10. e5 {[%clk 0:02:44]}  e6 {[%clk 0:02:49]} 11. Bg5 {[%clk 0:02:42]}  Qc8 {[%clk 0:02:45]} 12. Rc1 {[%clk 0:02:39]}  c5 {[%clk 0:02:45]} 13. Nb5 {[%clk 0:02:34]}  Qc6 {[%clk 0:02:38]} 14. Nd6 {[%clk 0:02:32]}  cxd4 {[%clk 0:02:21]} 15. Bxe6 {[%clk 0:02:29]}  Nc5 {[%clk 0:02:05]} 16. Bc4 {[%clk 0:02:01]}  Qd7 {[%clk 0:01:55]} 17. b4 {[%clk 0:01:53]}  Ne6 {[%clk 0:01:53]} 18. Nxb7 {[%clk 0:01:45]}  Qxb7 {[%clk 0:01:51]} 19. Bxe6 {[%clk 0:01:45]}  fxe6 {[%clk 0:01:51]} 20. Nxd4 {[%clk 0:01:44]}  Re8 {[%clk 0:01:39]} 21. Re1 {[%clk 0:01:35]}  Nd7 {[%clk 0:01:34]} 22. Nc6 {[%clk 0:01:20]}  Nf8 {[%clk 0:01:33]} 23. b5 {[%clk 0:01:12]}  Rac8 {[%clk 0:01:31]} 24. a4 {[%clk 0:01:10]}  Rc7 {[%clk 0:01:31]} 25. Qf3 {[%clk 0:00:55]}  Rf7 {[%clk 0:01:29]} 26. Qa3 {[%clk 0:00:48]}  h6 {[%clk 0:01:22]} 27. Bd2 {[%clk 0:00:40]}  Nh7 {[%clk 0:01:21]} 28. Bb4 {[%clk 0:00:39]}  Rf5 {[%clk 0:01:07]} 29. Rcd1 {[%clk 0:00:35]}  Qf7 {[%clk 0:01:06]} 30. f3 {[%clk 0:00:33]}  Ng5 {[%clk 0:00:55]} 31. Re3 {[%clk 0:00:25]}  Rf4 {[%clk 0:00:54]} 32. Rdd3 {[%clk 0:00:21]}  Rc4 {[%clk 0:00:52]} 33. Re2 {[%clk 0:00:13]}  Qf4 {[%clk 0:00:51]} 34. Red2 {[%clk 0:00:12]}  Qh4 {[%clk 0:00:47]} 35. g3 {[%clk 0:00:11]}  Qh5 {[%clk 0:00:45]} 36. g4 {[%clk 0:00:09]}  Qh4 {[%clk 0:00:44]} 37. Kf1 {[%clk 0:00:07]}  Nh3 {[%clk 0:00:41]} 38. Rd8 {[%clk 0:00:03]}  Rxd8 {[%clk 0:00:32]} 39. Rxd8+ {[%clk 0:00:02]}  Kh7 {[%clk 0:00:32]} 40. Rd2 {[%clk 0:00:01]}  Nf4 {[%clk 0:00:30]} 41. Be7 {[%clk 0:00:00]}  Qh3+ {[%clk 0:00:29]} 0-1


[Site "https://www.chess.com"]

[Event "Titled Tuesday Blitz October 31 Early 2023"]
[White "Pranav, V"]
[Black "Le, Tuan Minh"]
[WhiteFideId "25060783"]
[BlackFideId "12401153"]
[WhiteElo "3036"]
[BlackElo "2990"]
[Result "1-0"]
[Round "9"]
[TimeControl "180+1"]
[Date "2023.10.31"]
[WhiteClock "0:00:12"]
[BlackClock "0:00:01"]
[Board "2"]

1. e4 {[%clk 0:03:00]}  e5 {[%clk 0:02:56]} 2. Nf3 {[%clk 0:03:00]}  Nc6 {[%clk 0:02:53]} 3. Bb5 {[%clk 0:03:00]}  a6 {[%clk 0:02:53]} 4. Ba4 {[%clk 0:03:00]}  Bc5 {[%clk 0:02:53]} 5. O-O {[%clk 0:02:58]}  Nge7 {[%clk 0:02:54]} 6. c3 {[%clk 0:02:57]}  Ng6 {[%clk 0:02:54]} 7. d4 {[%clk 0:02:56]}  Ba7 {[%clk 0:02:54]} 8. Bg5 {[%clk 0:02:57]}  f6 {[%clk 0:02:55]} 9. Be3 {[%clk 0:02:57]}  O-O {[%clk 0:02:55]} 10. Nbd2 {[%clk 0:02:58]}  Kh8 {[%clk 0:02:55]} 11. Re1 {[%clk 0:02:58]}  d6 {[%clk 0:02:55]} 12. h3 {[%clk 0:02:57]}  exd4 {[%clk 0:02:54]} 13. cxd4 {[%clk 0:02:57]}  Nce7 {[%clk 0:02:54]} 14. d5 {[%clk 0:02:20]}  Bxe3 {[%clk 0:02:53]} 15. fxe3 {[%clk 0:02:13]}  c5 {[%clk 0:02:25]} 16. dxc6 {[%clk 0:02:09]}  bxc6 {[%clk 0:02:24]} 17. Rc1 {[%clk 0:02:04]}  d5 {[%clk 0:02:21]} 18. Nd4 {[%clk 0:01:45]}  Ne5 {[%clk 0:02:09]} 19. N2f3 {[%clk 0:01:28]}  Nxf3+ {[%clk 0:01:23]} 20. Qxf3 {[%clk 0:01:27]}  Rb8 {[%clk 0:01:23]} 21. Bxc6 {[%clk 0:01:10]}  dxe4 {[%clk 0:01:16]} 22. Bxe4 {[%clk 0:01:03]}  Rb5 {[%clk 0:01:16]} 23. Nxb5 {[%clk 0:01:01]}  axb5 {[%clk 0:01:14]} 24. Red1 {[%clk 0:00:59]}  Qb6 {[%clk 0:01:10]} 25. Qf4 {[%clk 0:00:57]}  Ng6 {[%clk 0:00:56]} 26. Bxg6 {[%clk 0:00:51]}  hxg6 {[%clk 0:00:57]} 27. Kh2 {[%clk 0:00:49]}  Re8 {[%clk 0:00:52]} 28. Rc7 {[%clk 0:00:39]}  g5 {[%clk 0:00:41]} 29. Qg3 {[%clk 0:00:27]}  Bf5 {[%clk 0:00:39]} 30. Rc3 {[%clk 0:00:22]}  b4 {[%clk 0:00:39]} 31. Qc7 {[%clk 0:00:20]}  Qe6 {[%clk 0:00:38]} 32. Rc5 {[%clk 0:00:19]}  Bg6 {[%clk 0:00:35]} 33. Rd8 {[%clk 0:00:19]}  Rxd8 {[%clk 0:00:31]} 34. Qxd8+ {[%clk 0:00:19]}  Kh7 {[%clk 0:00:32]} 35. Qd4 {[%clk 0:00:17]}  Be4 {[%clk 0:00:23]} 36. a3 {[%clk 0:00:17]}  b3 {[%clk 0:00:13]} 37. a4 {[%clk 0:00:17]}  f5 {[%clk 0:00:10]} 38. Rc7 {[%clk 0:00:16]}  Qg6 {[%clk 0:00:08]} 39. Qe5 {[%clk 0:00:16]}  g4 {[%clk 0:00:08]} 40. h4 {[%clk 0:00:16]}  Qh6 {[%clk 0:00:07]} 41. g3 {[%clk 0:00:15]}  Kg8 {[%clk 0:00:04]} 42. a5 {[%clk 0:00:15]}  Bd3 {[%clk 0:00:05]} 43. Qd5+ {[%clk 0:00:15]}  Kh7 {[%clk 0:00:05]} 44. Qxd3 {[%clk 0:00:15]}  Qf6 {[%clk 0:00:04]} 45. Qe2 {[%clk 0:00:14]}  Qd6 {[%clk 0:00:02]} 46. Rc1 {[%clk 0:00:14]}  Qe5 {[%clk 0:00:02]} 47. a6 {[%clk 0:00:13]}  Qa5 {[%clk 0:00:02]} 48. Rf1 {[%clk 0:00:12]}  Kg6 {[%clk 0:00:01]} 49. e4 {[%clk 0:00:12]} 1-0


[Site "https://www.chess.com"]

[Event "Titled Tuesday Blitz October 31 Early 2023"]
[White "Elsa167"]
[Black "Kovalev, Vladislav"]
[BlackFideId "13504398"]
[WhiteElo "2997"]
[BlackElo "2890"]
[Result "0-1"]
[Round "9"]
[TimeControl "180+1"]
[Date "2023.10.31"]
[WhiteClock "0:00:00"]
[BlackClock "0:00:06"]
[Board "6"]

1. d4 {[%clk 0:03:00]}  Nf6 {[%clk 0:03:00]} 2. c4 {[%clk 0:03:01]}  e6 {[%clk 0:03:00]} 3. Nf3 {[%clk 0:03:01]}  b6 {[%clk 0:03:00]} 4. Bf4 {[%clk 0:03:00]}  Bb7 {[%clk 0:02:59]} 5. e3 {[%clk 0:03:01]}  Bb4+ {[%clk 0:02:58]} 6. Nfd2 {[%clk 0:03:01]}  O-O {[%clk 0:02:56]} 7. a3 {[%clk 0:03:01]}  Bxd2+ {[%clk 0:02:56]} 8. Qxd2 {[%clk 0:03:02]}  d6 {[%clk 0:02:55]} 9. Nc3 {[%clk 0:03:02]}  Nbd7 {[%clk 0:02:55]} 10. Bg5 {[%clk 0:02:49]}  h6 {[%clk 0:02:55]} 11. Bh4 {[%clk 0:02:49]}  Re8 {[%clk 0:02:55]} 12. f3 {[%clk 0:02:40]}  e5 {[%clk 0:02:48]} 13. Be2 {[%clk 0:02:22]}  Nf8 {[%clk 0:02:37]} 14. O-O {[%clk 0:01:50]}  Ng6 {[%clk 0:02:37]} 15. Bf2 {[%clk 0:01:50]}  e4 {[%clk 0:02:33]} 16. f4 {[%clk 0:01:46]}  Bc8 {[%clk 0:02:33]} 17. d5 {[%clk 0:01:44]}  a6 {[%clk 0:02:16]} 18. b4 {[%clk 0:01:43]}  Bf5 {[%clk 0:02:13]} 19. Rac1 {[%clk 0:01:34]}  Qd7 {[%clk 0:02:13]} 20. c5 {[%clk 0:01:27]}  dxc5 {[%clk 0:02:09]} 21. bxc5 {[%clk 0:01:28]}  bxc5 {[%clk 0:02:10]} 22. Rfd1 {[%clk 0:01:22]}  Bg4 {[%clk 0:01:59]} 23. h3 {[%clk 0:01:17]}  Bxe2 {[%clk 0:01:59]} 24. Qxe2 {[%clk 0:01:17]}  h5 {[%clk 0:01:53]} 25. Qc4 {[%clk 0:01:17]}  Qd6 {[%clk 0:01:17]} 26. Na4 {[%clk 0:01:14]}  c6 {[%clk 0:00:58]} 27. dxc6 {[%clk 0:00:54]}  Qxc6 {[%clk 0:00:59]} 28. Nxc5 {[%clk 0:00:55]}  Rac8 {[%clk 0:01:00]} 29. Qxa6 {[%clk 0:00:42]}  Qxa6 {[%clk 0:00:56]} 30. Nxa6 {[%clk 0:00:42]}  Rxc1 {[%clk 0:00:57]} 31. Rxc1 {[%clk 0:00:42]}  Ra8 {[%clk 0:00:58]} 32. Rc6 {[%clk 0:00:35]}  Ne7 {[%clk 0:00:58]} 33. Rb6 {[%clk 0:00:35]}  Kh7 {[%clk 0:00:48]} 34. Bh4 {[%clk 0:00:21]}  Nfd5 {[%clk 0:00:44]} 35. Rd6 {[%clk 0:00:20]}  f6 {[%clk 0:00:41]} 36. Bf2 {[%clk 0:00:20]}  Nc3 {[%clk 0:00:28]} 37. Rd7 {[%clk 0:00:12]}  Nf5 {[%clk 0:00:22]} 38. Nc5 {[%clk 0:00:09]}  Rxa3 {[%clk 0:00:21]} 39. g4 {[%clk 0:00:09]}  hxg4 {[%clk 0:00:09]} 40. hxg4 {[%clk 0:00:10]}  Nh6 {[%clk 0:00:10]} 41. Ne6 {[%clk 0:00:11]}  Ra6 {[%clk 0:00:03]} 42. Nxg7 {[%clk 0:00:09]}  Nxg4 {[%clk 0:00:03]} 43. Nf5+ {[%clk 0:00:06]}  Kh8 {[%clk 0:00:03]} 44. Rd8+ {[%clk 0:00:03]}  Kh7 {[%clk 0:00:04]} 45. Rd7+ {[%clk 0:00:04]}  Kg6 {[%clk 0:00:03]} 46. Nh4+ {[%clk 0:00:03]}  Kh6 {[%clk 0:00:03]} 47. Nf5+ {[%clk 0:00:03]}  Kg6 {[%clk 0:00:04]} 48. Ne7+ {[%clk 0:00:03]}  Kh6 {[%clk 0:00:02]} 49. f5 {[%clk 0:00:03]}  Kg5 {[%clk 0:00:02]} 50. Bg3 {[%clk 0:00:03]}  Ra1+ {[%clk 0:00:02]} 51. Kg2 {[%clk 0:00:03]}  Nxe3+ {[%clk 0:00:03]} 52. Kf2 {[%clk 0:00:03]}  Nxf5 {[%clk 0:00:03]} 53. Nxf5 {[%clk 0:00:01]}  Kxf5 {[%clk 0:00:03]} 54. Bh4 {[%clk 0:00:02]}  Ra2+ {[%clk 0:00:04]} 55. Ke3 {[%clk 0:00:02]}  Re2+ {[%clk 0:00:04]} 56. Kd4 {[%clk 0:00:02]}  Rd2+ {[%clk 0:00:05]} 57. Kxc3 {[%clk 0:00:00]}  Rxd7 {[%clk 0:00:06]} 0-1


[Site "https://www.chess.com"]

[Event "Titled Tuesday Blitz October 31 Early 2023"]
[White "Kamsky, Gata"]
[Black "Paravyan, David"]
[WhiteFideId "2000024"]
[BlackFideId "4194985"]
[WhiteElo "2835"]
[BlackElo "3070"]
[Result "1/2-1/2"]
[Round "9"]
[TimeControl "180+1"]
[Date "2023.10.31"]
[WhiteClock "0:00:16"]
[BlackClock "0:00:06"]
[Board "9"]

1. e4 {[%clk 0:03:00]}  e5 {[%clk 0:02:59]} 2. Nf3 {[%clk 0:02:59]}  Nf6 {[%clk 0:03:00]} 3. Nxe5 {[%clk 0:02:58]}  d6 {[%clk 0:03:00]} 4. Nf3 {[%clk 0:02:57]}  Nxe4 {[%clk 0:03:00]} 5. Qe2 {[%clk 0:02:55]}  Qe7 {[%clk 0:03:00]} 6. Nc3 {[%clk 0:02:54]}  Nxc3 {[%clk 0:03:00]} 7. dxc3 {[%clk 0:02:53]}  Qxe2+ {[%clk 0:03:00]} 8. Bxe2 {[%clk 0:02:53]}  Nc6 {[%clk 0:03:01]} 9. Bf4 {[%clk 0:02:42]}  h6 {[%clk 0:02:59]} 10. h3 {[%clk 0:02:40]}  Be6 {[%clk 0:02:59]} 11. O-O-O {[%clk 0:02:39]}  O-O-O {[%clk 0:02:58]} 12. Nd4 {[%clk 0:02:37]}  Nxd4 {[%clk 0:02:58]} 13. cxd4 {[%clk 0:02:38]}  Be7 {[%clk 0:02:57]} 14. d5 {[%clk 0:02:32]}  Bf5 {[%clk 0:02:56]} 15. Bg4 {[%clk 0:02:31]}  Bxg4 {[%clk 0:02:56]} 16. hxg4 {[%clk 0:02:32]}  Bg5 {[%clk 0:02:56]} 17. Bxg5 {[%clk 0:02:20]}  hxg5 {[%clk 0:02:57]} 18. Rde1 {[%clk 0:02:17]}  Kd7 {[%clk 0:02:56]} 19. Kd2 {[%clk 0:02:17]}  Rh4 {[%clk 0:02:48]} 20. Rxh4 {[%clk 0:02:09]}  gxh4 {[%clk 0:02:48]} 21. Rh1 {[%clk 0:02:08]}  g5 {[%clk 0:02:47]} 22. g3 {[%clk 0:01:59]}  hxg3 {[%clk 0:02:47]} 23. fxg3 {[%clk 0:01:59]}  Re8 {[%clk 0:02:42]} 24. Kd3 {[%clk 0:01:58]}  Re5 {[%clk 0:02:28]} 25. c4 {[%clk 0:01:58]}  c6 {[%clk 0:02:23]} 26. dxc6+ {[%clk 0:01:56]}  bxc6 {[%clk 0:02:24]} 27. Rf1 {[%clk 0:01:38]}  Ke6 {[%clk 0:02:21]} 28. b4 {[%clk 0:01:33]}  a5 {[%clk 0:02:20]} 29. a3 {[%clk 0:01:31]}  axb4 {[%clk 0:02:20]} 30. axb4 {[%clk 0:01:31]}  d5 {[%clk 0:02:20]} 31. cxd5+ {[%clk 0:01:30]}  Rxd5+ {[%clk 0:02:19]} 32. Kc3 {[%clk 0:01:29]}  f6 {[%clk 0:02:17]} 33. Ra1 {[%clk 0:01:20]}  f5 {[%clk 0:01:54]} 34. Ra6 {[%clk 0:00:57]}  Kd6 {[%clk 0:01:51]} 35. Ra5 {[%clk 0:00:45]}  fxg4 {[%clk 0:00:44]} 36. Rxd5+ {[%clk 0:00:43]}  Kxd5 {[%clk 0:00:44]} 37. Kd3 {[%clk 0:00:42]}  Kd6 {[%clk 0:00:14]} 38. Kd4 {[%clk 0:00:41]}  Kc7 {[%clk 0:00:12]} 39. Kc5 {[%clk 0:00:32]}  Kd7 {[%clk 0:00:11]} 40. Kc4 {[%clk 0:00:32]}  Ke6 {[%clk 0:00:10]} 41. Kc5 {[%clk 0:00:31]}  Kd7 {[%clk 0:00:08]} 42. Kc4 {[%clk 0:00:32]}  Kc8 {[%clk 0:00:06]} 43. Kc5 {[%clk 0:00:24]}  Kc7 {[%clk 0:00:06]} 44. b5 {[%clk 0:00:12]}  cxb5 {[%clk 0:00:06]} 45. Kxb5 {[%clk 0:00:13]}  Kd6 {[%clk 0:00:06]} 46. Kc4 {[%clk 0:00:14]}  Ke5 {[%clk 0:00:06]} 47. Kd3 {[%clk 0:00:14]}  Kd5 {[%clk 0:00:06]} 48. Ke3 {[%clk 0:00:15]}  Ke5 {[%clk 0:00:05]} 49. Kd3 {[%clk 0:00:15]}  Kd5 {[%clk 0:00:06]} 50. Ke3 {[%clk 0:00:16]}  Ke5 {[%clk 0:00:06]} 51. Kd3 {[%clk 0:00:16]} 1/2-1/2


[Site "https://www.chess.com"]

[Event "Titled Tuesday Blitz October 31 Early 2023"]
[White "Molina, Roberto Junio Brito"]
[Black "Ilamparthi A R"]
[WhiteFideId "2109450"]
[BlackFideId "45015775"]
[WhiteElo "2836"]
[BlackElo "2924"]
[Result "0-1"]
[Round "9"]
[TimeControl "180+1"]
[Date "2023.10.31"]
[WhiteClock "0:00:02"]
[BlackClock "0:00:13"]
[Board "12"]

1. d4 {[%clk 0:03:00]}  Nf6 {[%clk 0:02:59]} 2. c4 {[%clk 0:03:00]}  g6 {[%clk 0:02:59]} 3. Nc3 {[%clk 0:03:00]}  Bg7 {[%clk 0:03:00]} 4. e4 {[%clk 0:03:00]}  O-O {[%clk 0:03:00]} 5. Nf3 {[%clk 0:03:00]}  d6 {[%clk 0:03:01]} 6. Be2 {[%clk 0:03:00]}  e5 {[%clk 0:03:01]} 7. O-O {[%clk 0:03:01]}  Nc6 {[%clk 0:03:01]} 8. d5 {[%clk 0:03:01]}  Ne7 {[%clk 0:03:01]} 9. b4 {[%clk 0:03:02]}  a5 {[%clk 0:03:01]} 10. Ba3 {[%clk 0:03:02]}  axb4 {[%clk 0:03:01]} 11. Bxb4 {[%clk 0:03:03]}  Nh5 {[%clk 0:03:01]} 12. Re1 {[%clk 0:03:02]}  b6 {[%clk 0:02:50]} 13. a4 {[%clk 0:03:00]}  f5 {[%clk 0:02:47]} 14. exf5 {[%clk 0:02:45]}  Nxf5 {[%clk 0:02:46]} 15. Ne4 {[%clk 0:02:35]}  Nf4 {[%clk 0:02:39]} 16. Bf1 {[%clk 0:02:32]}  Nd4 {[%clk 0:02:37]} 17. Nxd4 {[%clk 0:02:29]}  exd4 {[%clk 0:02:38]} 18. a5 {[%clk 0:02:15]}  bxa5 {[%clk 0:02:32]} 19. Rxa5 {[%clk 0:02:11]}  Rb8 {[%clk 0:02:30]} 20. Bd2 {[%clk 0:02:08]}  Qh4 {[%clk 0:02:14]} 21. f3 {[%clk 0:01:09]}  Bf5 {[%clk 0:02:01]} 22. Ra7 {[%clk 0:01:05]}  d3 {[%clk 0:01:22]} 23. g3 {[%clk 0:00:40]}  Nh3+ {[%clk 0:00:49]} 24. Kg2 {[%clk 0:00:34]}  Qh5 {[%clk 0:00:18]} 25. Bxd3 {[%clk 0:00:21]}  Bd4 {[%clk 0:00:15]} 26. Ra2 {[%clk 0:00:20]}  Bxe4 {[%clk 0:00:15]} 27. Bxe4 {[%clk 0:00:16]}  Nf2 {[%clk 0:00:15]} 28. Qe2 {[%clk 0:00:17]}  Qh3+ {[%clk 0:00:13]} 29. Kg1 {[%clk 0:00:02]} 0-1


[Site "https://www.chess.com"]

[Event "Titled Tuesday Blitz October 31 Early 2023"]
[White "Henriquez Villagra, Cristobal"]
[Black "Saydaliev, Saidakbar"]
[WhiteFideId "3409350"]
[BlackFideId "14203693"]
[WhiteElo "2897"]
[BlackElo "2786"]
[Result "1-0"]
[Round "9"]
[TimeControl "180+1"]
[Date "2023.10.31"]
[WhiteClock "0:00:03"]
[BlackClock "0:00:06"]
[Board "16"]

1. d4 {[%clk 0:02:51]}  Nf6 {[%clk 0:02:59]} 2. Nd2 {[%clk 0:02:48]}  d5 {[%clk 0:02:58]} 3. c3 {[%clk 0:02:48]}  g6 {[%clk 0:02:50]} 4. Nb3 {[%clk 0:02:45]}  Bg7 {[%clk 0:02:50]} 5. Bf4 {[%clk 0:02:46]}  O-O {[%clk 0:02:50]} 6. h3 {[%clk 0:02:46]}  a5 {[%clk 0:02:45]} 7. a4 {[%clk 0:02:41]}  b6 {[%clk 0:02:45]} 8. Nf3 {[%clk 0:02:41]}  Ba6 {[%clk 0:02:45]} 9. Nc1 {[%clk 0:02:23]}  c5 {[%clk 0:02:42]} 10. Nd3 {[%clk 0:02:23]}  Ne4 {[%clk 0:02:36]} 11. e3 {[%clk 0:02:23]}  Nc6 {[%clk 0:02:36]} 12. Be2 {[%clk 0:02:23]}  cxd4 {[%clk 0:02:32]} 13. exd4 {[%clk 0:02:24]}  b5 {[%clk 0:02:25]} 14. axb5 {[%clk 0:02:22]}  Bxb5 {[%clk 0:02:26]} 15. O-O {[%clk 0:02:23]}  Qb6 {[%clk 0:02:21]} 16. Re1 {[%clk 0:02:22]}  Bxd3 {[%clk 0:02:17]} 17. Bxd3 {[%clk 0:02:22]}  Qxb2 {[%clk 0:01:41]} 18. Rxe4 {[%clk 0:02:21]}  dxe4 {[%clk 0:01:36]} 19. Bxe4 {[%clk 0:02:22]}  Rac8 {[%clk 0:01:31]} 20. Bd2 {[%clk 0:02:18]}  e6 {[%clk 0:01:23]} 21. Ne1 {[%clk 0:02:16]}  Ne7 {[%clk 0:01:18]} 22. Rxa5 {[%clk 0:02:15]}  Rfd8 {[%clk 0:01:11]} 23. Nd3 {[%clk 0:02:14]}  Qb6 {[%clk 0:01:08]} 24. Qa4 {[%clk 0:02:12]}  f5 {[%clk 0:01:03]} 25. Rb5 {[%clk 0:02:09]}  Qd6 {[%clk 0:00:57]} 26. Bf3 {[%clk 0:02:08]}  Nd5 {[%clk 0:00:48]} 27. Bxd5 {[%clk 0:02:02]}  exd5 {[%clk 0:00:49]} 28. Rb7 {[%clk 0:02:02]}  Qc6 {[%clk 0:00:45]} 29. Qa7 {[%clk 0:02:01]}  Bf6 {[%clk 0:00:38]} 30. Rxh7 {[%clk 0:02:00]}  Qe8 {[%clk 0:00:35]} 31. Bg5 {[%clk 0:01:42]}  Ra8 {[%clk 0:00:30]} 32. Qc7 {[%clk 0:01:25]}  Rac8 {[%clk 0:00:27]} 33. Bxf6 {[%clk 0:00:46]}  Rxc7 {[%clk 0:00:27]} 34. Rxc7 {[%clk 0:00:47]}  Rd7 {[%clk 0:00:27]} 35. Rc5 {[%clk 0:00:36]}  Rd6 {[%clk 0:00:22]} 36. Be5 {[%clk 0:00:35]}  Rc6 {[%clk 0:00:23]} 37. Rxd5 {[%clk 0:00:24]}  Rxc3 {[%clk 0:00:22]} 38. Nf4 {[%clk 0:00:24]}  g5 {[%clk 0:00:21]} 39. Ne2 {[%clk 0:00:24]}  Rc2 {[%clk 0:00:21]} 40. Ng3 {[%clk 0:00:23]}  f4 {[%clk 0:00:21]} 41. Ne4 {[%clk 0:00:24]}  Rc1+ {[%clk 0:00:19]} 42. Kh2 {[%clk 0:00:24]}  Qa4 {[%clk 0:00:20]} 43. Nxg5 {[%clk 0:00:21]}  Kf8 {[%clk 0:00:19]} 44. Bxf4 {[%clk 0:00:20]}  Rd1 {[%clk 0:00:17]} 45. Be3 {[%clk 0:00:20]}  Qc6 {[%clk 0:00:15]} 46. Re5 {[%clk 0:00:19]}  Qc2 {[%clk 0:00:14]} 47. h4 {[%clk 0:00:19]}  Qb1 {[%clk 0:00:14]} 48. Kg3 {[%clk 0:00:19]}  Rh1 {[%clk 0:00:14]} 49. Nf3 {[%clk 0:00:19]}  Qg6+ {[%clk 0:00:14]} 50. Bg5 {[%clk 0:00:19]}  Qc2 {[%clk 0:00:13]} 51. Re1 {[%clk 0:00:17]}  Rxe1 {[%clk 0:00:13]} 52. Nxe1 {[%clk 0:00:18]}  Qc3+ {[%clk 0:00:13]} 53. Nf3 {[%clk 0:00:18]}  Qd3 {[%clk 0:00:14]} 54. h5 {[%clk 0:00:17]}  Kg7 {[%clk 0:00:14]} 55. h6+ {[%clk 0:00:17]}  Kg6 {[%clk 0:00:13]} 56. Be3 {[%clk 0:00:18]}  Qe4 {[%clk 0:00:13]} 57. Kh2 {[%clk 0:00:12]}  Qd5 {[%clk 0:00:09]} 58. Ng1 {[%clk 0:00:10]}  Qe4 {[%clk 0:00:09]} 59. Nh3 {[%clk 0:00:11]}  Qh4 {[%clk 0:00:09]} 60. f3 {[%clk 0:00:05]}  Qe1 {[%clk 0:00:07]} 61. Bf4 {[%clk 0:00:06]}  Qd1 {[%clk 0:00:07]} 62. Be3 {[%clk 0:00:06]}  Qe1 {[%clk 0:00:07]} 63. Bf4 {[%clk 0:00:03]}  Qh4 {[%clk 0:00:08]} 64. d5 {[%clk 0:00:03]}  Kf5 {[%clk 0:00:08]} 65. d6 {[%clk 0:00:03]}  Ke6 {[%clk 0:00:08]} 66. Bg5 {[%clk 0:00:03]}  Qh5 {[%clk 0:00:08]} 67. Bf4 {[%clk 0:00:02]}  Kd7 {[%clk 0:00:08]} 68. Kg1 {[%clk 0:00:02]}  Qh4 {[%clk 0:00:09]} 69. Kf1 {[%clk 0:00:03]}  Qf6 {[%clk 0:00:09]} 70. Kf2 {[%clk 0:00:03]}  Qd4+ {[%clk 0:00:09]} 71. Kg3 {[%clk 0:00:03]}  Qf6 {[%clk 0:00:10]} 72. Kg4 {[%clk 0:00:04]}  Qg6+ {[%clk 0:00:11]} 73. Kh4 {[%clk 0:00:04]}  Qf6+ {[%clk 0:00:11]} 74. Kh5 {[%clk 0:00:05]}  Qf5+ {[%clk 0:00:11]} 75. Kh4 {[%clk 0:00:05]}  Qg6 {[%clk 0:00:11]} 76. Bg5 {[%clk 0:00:06]}  Ke6 {[%clk 0:00:11]} 77. g4 {[%clk 0:00:06]}  Kxd6 {[%clk 0:00:11]} 78. f4 {[%clk 0:00:07]}  Qc2 {[%clk 0:00:12]} 79. f5 {[%clk 0:00:08]}  Ke5 {[%clk 0:00:12]} 80. Bf4+ {[%clk 0:00:06]}  Kf6 {[%clk 0:00:12]} 81. Bg5+ {[%clk 0:00:05]}  Kf7 {[%clk 0:00:12]} 82. Bf4 {[%clk 0:00:04]}  Qd1 {[%clk 0:00:10]} 83. Kg5 {[%clk 0:00:02]}  Qd8+ {[%clk 0:00:10]} 84. Kh5 {[%clk 0:00:03]}  Qd1 {[%clk 0:00:09]} 85. Ng5+ {[%clk 0:00:03]}  Kf6 {[%clk 0:00:10]} 86. Ne4+ {[%clk 0:00:03]}  Kf7 {[%clk 0:00:10]} 87. Ng3 {[%clk 0:00:03]}  Qd7 {[%clk 0:00:09]} 88. Be5 {[%clk 0:00:03]}  Qd1 {[%clk 0:00:09]} 89. h7 {[%clk 0:00:03]}  Qd2 {[%clk 0:00:09]} 90. h8=Q {[%clk 0:00:03]}  Qh2+ {[%clk 0:00:10]} 91. Kg5 {[%clk 0:00:03]}  Qd2+ {[%clk 0:00:09]} 92. Bf4 {[%clk 0:00:03]}  Qd8+ {[%clk 0:00:06]} 93. Qxd8 {[%clk 0:00:03]} 1-0


[Site "https://www.chess.com"]